[Event "January 9 Late 2024"]
[Site "https://www.chess.com"]
[Date "2024.01.09"]
[Round "7"]
[White "Gutierrez Olivares, Daniel"]
[Black "Harriott, Tyrell"]
[Result "0-1"]
[Board "128"]
[TimeControl "180+1"]
[WhiteFideId "2264005"]
[BlackFideId "2086484"]
[WhiteElo "2481"]
[BlackElo "2362"]
[WhiteTeam "ESP"]
[BlackTeam "USA"]
[WhiteClock "0:00:16"]
[BlackClock "0:00:05"]

1. Nf3 {[%clk 0:03:00]}  d5 {[%clk 0:02:57]} 2. c4 {[%clk 0:02:53]}  e6 {[%clk 0:02:56]} 3. g3 {[%clk 0:02:46]}  f5 {[%clk 0:02:51]} 4. Bg2 {[%clk 0:02:45]}  c6 {[%clk 0:02:51]} 5. b3 {[%clk 0:02:39]}  Bd6 {[%clk 0:02:50]} 6. Bb2 {[%clk 0:02:35]}  Nf6 {[%clk 0:02:50]} 7. Nc3 {[%clk 0:02:35]}  O-O {[%clk 0:02:49]} 8. cxd5 {[%clk 0:02:34]}  exd5 {[%clk 0:02:49]} 9. O-O {[%clk 0:02:35]}  f4 {[%clk 0:02:49]} 10. d3 {[%clk 0:02:32]}  Qe8 {[%clk 0:02:44]} 11. Qd2 {[%clk 0:02:23]}  fxg3 {[%clk 0:02:41]} 12. hxg3 {[%clk 0:02:22]}  h6 {[%clk 0:02:40]} 13. e4 {[%clk 0:02:21]}  Ng4 {[%clk 0:02:39]} 14. Ne2 {[%clk 0:02:10]}  Qh5 {[%clk 0:02:11]} 15. Nf4 {[%clk 0:02:00]}  Bxf4 {[%clk 0:02:07]} 16. gxf4 {[%clk 0:02:00]}  dxe4 {[%clk 0:01:57]} 17. dxe4 {[%clk 0:01:59]}  Nd7 {[%clk 0:01:52]} 18. Qd4 {[%clk 0:01:40]}  Ndf6 {[%clk 0:01:36]} 19. Rfc1 {[%clk 0:01:39]}  b6 {[%clk 0:01:34]} 20. Rxc6 {[%clk 0:01:37]}  Bb7 {[%clk 0:01:32]} 21. Re6 {[%clk 0:01:26]}  Rad8 {[%clk 0:01:21]} 22. Qc3 {[%clk 0:01:25]}  Ba6 {[%clk 0:01:17]} 23. Bf1 {[%clk 0:01:14]}  Bxf1 {[%clk 0:00:51]} 24. Kxf1 {[%clk 0:01:14]}  Rf7 {[%clk 0:00:38]} 25. Ke2 {[%clk 0:01:07]}  Rfd7 {[%clk 0:00:29]} 26. Rg1 {[%clk 0:01:07]}  Rd3 {[%clk 0:00:26]} 27. Qc4 {[%clk 0:01:03]}  Kh7 {[%clk 0:00:23]} 28. Rg3 {[%clk 0:01:01]}  Qh1 {[%clk 0:00:21]} 29. Qxd3 {[%clk 0:00:55]}  Rxd3 {[%clk 0:00:19]} 30. Kxd3 {[%clk 0:00:56]}  Qd1+ {[%clk 0:00:18]} 31. Nd2 {[%clk 0:00:55]}  Nxf2+ {[%clk 0:00:17]} 32. Kc3 {[%clk 0:00:51]}  Qe1 {[%clk 0:00:10]} 33. Kc2 {[%clk 0:00:38]}  Qe2 {[%clk 0:00:09]} 34. Bxf6 {[%clk 0:00:35]}  gxf6 {[%clk 0:00:08]} 35. Re7+ {[%clk 0:00:35]}  Kh8 {[%clk 0:00:09]} 36. Re8+ {[%clk 0:00:35]}  Kh7 {[%clk 0:00:09]} 37. Reg8 {[%clk 0:00:34]}  Qd1+ {[%clk 0:00:04]} 38. Kc3 {[%clk 0:00:27]}  Qc1+ {[%clk 0:00:04]} 39. Kb4 {[%clk 0:00:19]}  Qc5+ {[%clk 0:00:04]} 40. Ka4 {[%clk 0:00:16]}  Qa5# {[%clk 0:00:05]} 0-1

[Event "January 9 Late 2024"]
[Site "https://www.chess.com"]
[Date "2024.01.09"]
[Round "7"]
[White "Shohat, Yotam"]
[Black "Sohier, Julien"]
[Result "0-1"]
[Board "129"]
[TimeControl "180+1"]
[WhiteFideId "2813955"]
[BlackFideId "645346"]
[WhiteElo "2479"]
[BlackElo "2358"]
[WhiteTeam "ISR"]
[BlackTeam "FRA"]
[WhiteClock "0:01:02"]
[BlackClock "0:00:28"]

1. e4 {[%clk 0:03:00]}  e5 {[%clk 0:02:58]} 2. Nf3 {[%clk 0:03:00]}  Nc6 {[%clk 0:02:59]} 3. Bc4 {[%clk 0:03:00]}  Bc5 {[%clk 0:02:58]} 4. c3 {[%clk 0:03:00]}  Nf6 {[%clk 0:02:56]} 5. d3 {[%clk 0:03:00]}  O-O {[%clk 0:02:56]} 6. O-O {[%clk 0:03:00]}  d5 {[%clk 0:02:57]} 7. exd5 {[%clk 0:02:59]}  Nxd5 {[%clk 0:02:58]} 8. Re1 {[%clk 0:02:53]}  Bg4 {[%clk 0:02:56]} 9. Nbd2 {[%clk 0:02:48]}  Nb6 {[%clk 0:02:55]} 10. Bb3 {[%clk 0:02:46]}  Qxd3 {[%clk 0:02:55]} 11. Ne4 {[%clk 0:02:44]}  Qxd1 {[%clk 0:02:52]} 12. Bxd1 {[%clk 0:02:40]}  Be7 {[%clk 0:02:46]} 13. h3 {[%clk 0:02:35]}  Bxf3 {[%clk 0:02:35]} 14. Bxf3 {[%clk 0:02:36]}  f5 {[%clk 0:02:36]} 15. Ng5 {[%clk 0:02:32]}  e4 {[%clk 0:02:35]} 16. Be2 {[%clk 0:02:32]}  Rf6 {[%clk 0:02:18]} 17. Bd1 {[%clk 0:02:31]}  h6 {[%clk 0:02:14]} 18. Bb3+ {[%clk 0:02:31]}  Kh8 {[%clk 0:02:14]} 19. Nf7+ {[%clk 0:02:30]}  Kh7 {[%clk 0:02:14]} 20. Bf4 {[%clk 0:02:29]}  Na5 {[%clk 0:01:39]} 21. Ne5 {[%clk 0:02:05]}  Nxb3 {[%clk 0:01:38]} 22. axb3 {[%clk 0:02:06]}  Bd6 {[%clk 0:01:32]} 23. Bh2 {[%clk 0:01:52]}  Re8 {[%clk 0:01:28]} 24. Nc4 {[%clk 0:01:51]}  Bxh2+ {[%clk 0:01:25]} 25. Kxh2 {[%clk 0:01:52]}  Nxc4 {[%clk 0:01:25]} 26. bxc4 {[%clk 0:01:53]}  a6 {[%clk 0:01:22]} 27. Ra5 {[%clk 0:01:52]}  f4 {[%clk 0:01:17]} 28. Rd5 {[%clk 0:01:48]}  Kg6 {[%clk 0:01:05]} 29. h4 {[%clk 0:01:46]}  Rd6 {[%clk 0:00:55]} 30. Kh3 {[%clk 0:01:36]}  Rxd5 {[%clk 0:00:53]} 31. cxd5 {[%clk 0:01:36]}  Kf5 {[%clk 0:00:53]} 32. g4+ {[%clk 0:01:32]}  Ke5 {[%clk 0:00:51]} 33. Rd1 {[%clk 0:01:33]}  Rd8 {[%clk 0:00:46]} 34. c4 {[%clk 0:01:33]}  b5 {[%clk 0:00:46]} 35. b3 {[%clk 0:01:33]}  bxc4 {[%clk 0:00:46]} 36. bxc4 {[%clk 0:01:34]}  Rb8 {[%clk 0:00:46]} 37. g5 {[%clk 0:01:32]}  h5 {[%clk 0:00:45]} 38. Ra1 {[%clk 0:01:30]}  Rb3+ {[%clk 0:00:44]} 39. Kg2 {[%clk 0:01:30]}  Rb2 {[%clk 0:00:44]} 40. Rxa6 {[%clk 0:01:27]}  e3 {[%clk 0:00:43]} 41. Re6+ {[%clk 0:01:21]}  Kf5 {[%clk 0:00:38]} 42. Re7 {[%clk 0:01:15]}  Rxf2+ {[%clk 0:00:38]} 43. Kg1 {[%clk 0:01:15]}  Kg4 {[%clk 0:00:36]} 44. Rxg7 {[%clk 0:01:14]}  Kg3 {[%clk 0:00:36]} 45. Re7 {[%clk 0:01:12]}  Rc2 {[%clk 0:00:35]} 46. Kf1 {[%clk 0:01:10]}  Kf3 {[%clk 0:00:33]} 47. Kg1 {[%clk 0:01:06]}  e2 {[%clk 0:00:33]} 48. g6 {[%clk 0:01:05]}  Rc1+ {[%clk 0:00:33]} 49. Kh2 {[%clk 0:01:05]}  e1=Q {[%clk 0:00:33]} 50. Rxe1 {[%clk 0:01:02]}  Rxe1 {[%clk 0:00:33]} 51. g7 {[%clk 0:01:02]}  Re8 {[%clk 0:00:34]} 52. c5 {[%clk 0:00:59]}  Rg8 {[%clk 0:00:30]} 53. d6 {[%clk 0:01:00]}  cxd6 {[%clk 0:00:29]} 54. cxd6 {[%clk 0:01:01]}  Rxg7 {[%clk 0:00:29]} 55. d7 {[%clk 0:01:02]}  Rxd7 {[%clk 0:00:28]} 0-1

[Event "January 9 Late 2024"]
[Site "https://www.chess.com"]
[Date "2024.01.09"]
[Round "7"]
[White "Nilsen, Tobias Lang"]
[Black "Abdi, Farzad"]
[Result "1-0"]
[Board "132"]
[TimeControl "180+1"]
[WhiteFideId "1521624"]
[BlackFideId "2076829"]
[WhiteElo "2463"]
[BlackElo "2227"]
[WhiteTeam "NOR"]
[BlackTeam "USA"]
[WhiteClock "0:01:17"]
[BlackClock "0:00:17"]

1. e4 {[%clk 0:03:00]}  e5 {[%clk 0:02:59]} 2. Nf3 {[%clk 0:03:01]}  Nc6 {[%clk 0:02:57]} 3. Bc4 {[%clk 0:03:00]}  Bc5 {[%clk 0:02:56]} 4. c3 {[%clk 0:03:01]}  Nf6 {[%clk 0:02:56]} 5. d3 {[%clk 0:03:01]}  d6 {[%clk 0:02:55]} 6. O-O {[%clk 0:03:01]}  Be6 {[%clk 0:02:56]} 7. Bxe6 {[%clk 0:02:45]}  fxe6 {[%clk 0:02:55]} 8. b4 {[%clk 0:02:44]}  Bb6 {[%clk 0:02:54]} 9. Qb3 {[%clk 0:02:44]}  Qd7 {[%clk 0:02:49]} 10. a4 {[%clk 0:02:39]}  a5 {[%clk 0:02:46]} 11. b5 {[%clk 0:02:38]}  Nd8 {[%clk 0:02:43]} 12. Na3 {[%clk 0:02:37]}  Nf7 {[%clk 0:02:32]} 13. Nc4 {[%clk 0:02:36]}  Bc5 {[%clk 0:02:28]} 14. d4 {[%clk 0:02:35]}  exd4 {[%clk 0:02:17]} 15. cxd4 {[%clk 0:02:36]}  Bb4 {[%clk 0:02:17]} 16. e5 {[%clk 0:01:57]}  Nd5 {[%clk 0:02:06]} 17. Ne3 {[%clk 0:01:51]}  Nxe3 {[%clk 0:01:56]} 18. Bxe3 {[%clk 0:01:52]}  d5 {[%clk 0:01:52]} 19. Rac1 {[%clk 0:01:50]}  O-O {[%clk 0:01:46]} 20. Rc2 {[%clk 0:01:34]}  Rfc8 {[%clk 0:01:32]} 21. Rfc1 {[%clk 0:01:33]}  c6 {[%clk 0:01:32]} 22. bxc6 {[%clk 0:01:31]}  Rxc6 {[%clk 0:01:31]} 23. Rxc6 {[%clk 0:01:28]}  bxc6 {[%clk 0:01:31]} 24. Bd2 {[%clk 0:01:26]}  Be7 {[%clk 0:01:22]} 25. Qb6 {[%clk 0:01:21]}  c5 {[%clk 0:00:44]} 26. dxc5 {[%clk 0:01:19]}  Qxa4 {[%clk 0:00:17]} 27. Qxe6 {[%clk 0:01:17]} 1-0

[Event "January 9 Late 2024"]
[Site "https://www.chess.com"]
[Date "2024.01.10"]
[Round "7"]
[White "Jazdanovs, Aleksandrs"]
[Black "Lund, Gunnar"]
[Result "1/2-1/2"]
[Board "134"]
[TimeControl "180+1"]
[WhiteFideId "11604492"]
[BlackFideId "1520814"]
[WhiteElo "2324"]
[BlackElo "2643"]
[WhiteTeam "LAT"]
[BlackTeam "NOR"]
[WhiteClock "0:00:31"]
[BlackClock "0:01:00"]

1. e4 {[%clk 0:02:43]}  a6 {[%clk 0:03:00]} 2. d4 {[%clk 0:02:41]}  h6 {[%clk 0:03:01]} 3. Nc3 {[%clk 0:02:41]}  e6 {[%clk 0:03:02]} 4. Nf3 {[%clk 0:02:40]}  d6 {[%clk 0:03:03]} 5. Be3 {[%clk 0:02:38]}  Nc6 {[%clk 0:03:03]} 6. a4 {[%clk 0:02:30]}  Bd7 {[%clk 0:03:03]} 7. Bc4 {[%clk 0:02:29]}  e5 {[%clk 0:03:03]} 8. dxe5 {[%clk 0:02:23]}  Nxe5 {[%clk 0:03:04]} 9. Nxe5 {[%clk 0:02:23]}  dxe5 {[%clk 0:03:05]} 10. O-O {[%clk 0:02:17]}  Nf6 {[%clk 0:03:05]} 11. Qd3 {[%clk 0:01:52]}  Bd6 {[%clk 0:02:47]} 12. Rad1 {[%clk 0:01:37]}  O-O {[%clk 0:02:46]} 13. Nd5 {[%clk 0:01:37]}  Nxd5 {[%clk 0:02:46]} 14. Bxd5 {[%clk 0:01:38]}  Qc8 {[%clk 0:02:43]} 15. Qb3 {[%clk 0:01:36]}  Be6 {[%clk 0:02:38]} 16. Bxe6 {[%clk 0:01:33]}  Qxe6 {[%clk 0:02:39]} 17. Qxe6 {[%clk 0:01:33]}  fxe6 {[%clk 0:02:40]} 18. b3 {[%clk 0:01:32]}  Kf7 {[%clk 0:02:40]} 19. Rd3 {[%clk 0:01:32]}  Ke7 {[%clk 0:02:33]} 20. Rfd1 {[%clk 0:01:32]}  Rfd8 {[%clk 0:02:34]} 21. Bc1 {[%clk 0:01:32]}  Bc5 {[%clk 0:02:32]} 22. Bb2 {[%clk 0:01:32]}  Rxd3 {[%clk 0:02:26]} 23. Rxd3 {[%clk 0:01:33]}  Bd6 {[%clk 0:02:23]} 24. f3 {[%clk 0:01:33]}  b5 {[%clk 0:02:23]} 25. Kf1 {[%clk 0:01:26]}  bxa4 {[%clk 0:02:23]} 26. bxa4 {[%clk 0:01:27]}  Rb8 {[%clk 0:02:23]} 27. Rb3 {[%clk 0:01:28]}  c6 {[%clk 0:02:13]} 28. Ke2 {[%clk 0:01:23]}  Kd7 {[%clk 0:02:10]} 29. Kd3 {[%clk 0:01:22]}  Rxb3+ {[%clk 0:01:54]} 30. cxb3 {[%clk 0:01:23]}  c5 {[%clk 0:01:55]} 31. Kc4 {[%clk 0:01:21]}  Kc6 {[%clk 0:01:55]} 32. Ba3 {[%clk 0:01:17]}  g6 {[%clk 0:01:56]} 33. g4 {[%clk 0:01:11]}  h5 {[%clk 0:01:56]} 34. h3 {[%clk 0:01:10]}  Be7 {[%clk 0:01:55]} 35. Bb2 {[%clk 0:01:09]}  Bd6 {[%clk 0:01:55]} 36. Bc3 {[%clk 0:01:09]}  Bc7 {[%clk 0:01:54]} 37. Bd2 {[%clk 0:01:07]}  Bd6 {[%clk 0:01:48]} 38. Bh6 {[%clk 0:01:07]}  Kb6 {[%clk 0:01:46]} 39. Bg7 {[%clk 0:01:06]}  Kc6 {[%clk 0:01:47]} 40. Bf6 {[%clk 0:01:05]}  Kb6 {[%clk 0:01:46]} 41. Bg7 {[%clk 0:01:05]}  Kc6 {[%clk 0:01:47]} 42. Bh6 {[%clk 0:00:56]}  Kb6 {[%clk 0:01:47]} 43. Bc1 {[%clk 0:00:56]}  Kc6 {[%clk 0:01:47]} 44. Ba3 {[%clk 0:00:57]}  Be7 {[%clk 0:01:47]} 45. b4 {[%clk 0:00:54]}  cxb4 {[%clk 0:01:47]} 46. Bxb4 {[%clk 0:00:55]}  Bd8 {[%clk 0:01:46]} 47. Bf8 {[%clk 0:00:52]}  Bb6 {[%clk 0:01:44]} 48. Bg7 {[%clk 0:00:50]}  Bd4 {[%clk 0:01:42]} 49. f4 {[%clk 0:00:46]}  hxg4 {[%clk 0:01:32]} 50. hxg4 {[%clk 0:00:45]}  Bb2 {[%clk 0:01:32]} 51. f5 {[%clk 0:00:44]}  exf5 {[%clk 0:01:19]} 52. exf5 {[%clk 0:00:43]}  gxf5 {[%clk 0:01:19]} 53. gxf5 {[%clk 0:00:44]}  Kd6 {[%clk 0:01:18]} 54. Bf8+ {[%clk 0:00:42]}  Kd7 {[%clk 0:01:19]} 55. Kd5 {[%clk 0:00:41]}  Ba1 {[%clk 0:01:05]} 56. Bg7 {[%clk 0:00:41]}  Bc3 {[%clk 0:01:02]} 57. Bxe5 {[%clk 0:00:40]}  Bd2 {[%clk 0:01:01]} 58. f6 {[%clk 0:00:35]}  Bg5 {[%clk 0:01:00]} 59. Bd4 {[%clk 0:00:34]}  Bxf6 {[%clk 0:00:59]} 60. Bxf6 {[%clk 0:00:31]}  Kc7 {[%clk 0:01:00]} 1/2-1/2

[Event "January 9 Late 2024"]
[Site "https://www.chess.com"]
[Date "2024.01.09"]
[Round "7"]
[White "Yang, Kevin"]
[Black "Ardila, Oscar Humberto"]
[Result "1-0"]
[Board "135"]
[TimeControl "180+1"]
[WhiteFideId "30908485"]
[BlackFideId "4404742"]
[WhiteElo "2597"]
[BlackElo "2314"]
[WhiteTeam "USA"]
[BlackTeam "COL"]
[WhiteClock "0:00:09"]
[BlackClock "0:00:00"]

1. d4 {[%clk 0:03:00]}  Nf6 {[%clk 0:02:59]} 2. Nc3 {[%clk 0:02:58]}  d5 {[%clk 0:02:58]} 3. Bf4 {[%clk 0:02:57]}  c6 {[%clk 0:02:57]} 4. e3 {[%clk 0:02:57]}  e6 {[%clk 0:02:57]} 5. g4 {[%clk 0:02:56]}  Bd6 {[%clk 0:02:55]} 6. g5 {[%clk 0:02:46]}  Ne4 {[%clk 0:02:53]} 7. Nxe4 {[%clk 0:02:42]}  dxe4 {[%clk 0:02:52]} 8. Bxd6 {[%clk 0:02:37]}  Qxd6 {[%clk 0:02:51]} 9. c3 {[%clk 0:02:36]}  O-O {[%clk 0:02:46]} 10. Bg2 {[%clk 0:02:31]}  Qd5 {[%clk 0:02:30]} 11. Qg4 {[%clk 0:02:11]}  Qb5 {[%clk 0:02:12]} 12. O-O-O {[%clk 0:01:54]}  e5 {[%clk 0:02:03]} 13. Qh4 {[%clk 0:01:50]}  exd4 {[%clk 0:01:52]} 14. Bxe4 {[%clk 0:01:49]}  g6 {[%clk 0:01:48]} 15. Rxd4 {[%clk 0:01:28]}  Bf5 {[%clk 0:01:47]} 16. Nf3 {[%clk 0:01:17]}  Na6 {[%clk 0:01:44]} 17. Bxf5 {[%clk 0:00:47]}  Qxf5 {[%clk 0:01:43]} 18. Rf4 {[%clk 0:00:47]}  Qd5 {[%clk 0:01:37]} 19. Qh6 {[%clk 0:00:37]}  f5 {[%clk 0:00:52]} 20. gxf6 {[%clk 0:00:33]}  Rf7 {[%clk 0:00:45]} 21. Ng5 {[%clk 0:00:29]}  Qxh1+ {[%clk 0:00:43]} 22. Kc2 {[%clk 0:00:27]}  Rd8 {[%clk 0:00:25]} 23. Rd4 {[%clk 0:00:14]}  Rxd4 {[%clk 0:00:25]} 24. cxd4 {[%clk 0:00:11]}  Qd5 {[%clk 0:00:19]} 25. Nxf7 {[%clk 0:00:08]}  Qxf7 {[%clk 0:00:20]} 26. Qf4 {[%clk 0:00:08]}  Nc7 {[%clk 0:00:18]} 27. e4 {[%clk 0:00:06]}  Ne6 {[%clk 0:00:18]} 28. Qe5 {[%clk 0:00:05]}  Nf8 {[%clk 0:00:12]} 29. Qd6 {[%clk 0:00:02]}  Qe6 {[%clk 0:00:10]} 30. Qxe6+ {[%clk 0:00:02]}  Nxe6 {[%clk 0:00:10]} 31. Kd3 {[%clk 0:00:03]}  Kf7 {[%clk 0:00:10]} 32. e5 {[%clk 0:00:03]}  Nf4+ {[%clk 0:00:10]} 33. Ke4 {[%clk 0:00:03]}  Nd5 {[%clk 0:00:10]} 34. f4 {[%clk 0:00:03]}  Ke6 {[%clk 0:00:09]} 35. h4 {[%clk 0:00:03]}  b6 {[%clk 0:00:08]} 36. h5 {[%clk 0:00:03]}  Nc7 {[%clk 0:00:07]} 37. hxg6 {[%clk 0:00:03]}  hxg6 {[%clk 0:00:08]} 38. Kf3 {[%clk 0:00:04]}  c5 {[%clk 0:00:07]} 39. dxc5 {[%clk 0:00:04]}  bxc5 {[%clk 0:00:08]} 40. Kg4 {[%clk 0:00:05]}  Nd5 {[%clk 0:00:07]} 41. Kg5 {[%clk 0:00:05]}  Kf7 {[%clk 0:00:06]} 42. f5 {[%clk 0:00:05]}  gxf5 {[%clk 0:00:06]} 43. Kxf5 {[%clk 0:00:05]}  Nc7 {[%clk 0:00:07]} 44. Ke4 {[%clk 0:00:05]}  Ke6 {[%clk 0:00:07]} 45. Kf4 {[%clk 0:00:06]}  a5 {[%clk 0:00:07]} 46. Ke4 {[%clk 0:00:06]}  Ne8 {[%clk 0:00:05]} 47. Kd3 {[%clk 0:00:05]}  Nc7 {[%clk 0:00:04]} 48. Kc4 {[%clk 0:00:05]}  Kxe5 {[%clk 0:00:04]} 49. f7 {[%clk 0:00:05]}  Ne6 {[%clk 0:00:03]} 50. f8=Q {[%clk 0:00:03]}  Nxf8 {[%clk 0:00:03]} 51. Kxc5 {[%clk 0:00:04]}  Ke6 {[%clk 0:00:01]} 52. Kb5 {[%clk 0:00:05]}  Nd7 {[%clk 0:00:01]} 53. Kxa5 {[%clk 0:00:06]}  Kd5 {[%clk 0:00:02]} 54. Kb5 {[%clk 0:00:07]}  Kd4 {[%clk 0:00:02]} 55. Kc6 {[%clk 0:00:07]}  Ke5 {[%clk 0:00:02]} 56. Kxd7 {[%clk 0:00:07]}  Kd4 {[%clk 0:00:02]} 57. Kc6 {[%clk 0:00:08]}  Kc4 {[%clk 0:00:02]} 58. b3+ {[%clk 0:00:08]}  Kb4 {[%clk 0:00:02]} 59. Kb6 {[%clk 0:00:08]}  Ka3 {[%clk 0:00:02]} 60. Kc5 {[%clk 0:00:09]}  Kxa2 {[%clk 0:00:00]} 61. b4 {[%clk 0:00:09]} 1-0

[Event "January 9 Late 2024"]
[Site "https://www.chess.com"]
[Date "2024.01.09"]
[Round "7"]
[White "Hajiyev, Kanan"]
[Black "Skaric, Djuro"]
[Result "1-0"]
[Board "137"]
[TimeControl "180+1"]
[WhiteFideId "13404148"]
[BlackFideId "934569"]
[WhiteElo "2538"]
[BlackElo "2306"]
[WhiteTeam "AZE"]
[BlackTeam "SRB"]
[WhiteClock "0:02:17"]
[BlackClock "0:00:00"]

1. d4 {[%clk 0:03:00]}  d6 {[%clk 0:01:00]} 2. Nf3 {[%clk 0:02:54]}  g6 {[%clk 0:01:00]} 3. g3 {[%clk 0:02:55]}  Bg7 {[%clk 0:01:00]} 4. Bg2 {[%clk 0:02:56]}  Nf6 {[%clk 0:01:01]} 5. O-O {[%clk 0:02:57]}  O-O {[%clk 0:01:01]} 6. b3 {[%clk 0:02:58]}  Nc6 {[%clk 0:01:02]} 7. Bb2 {[%clk 0:02:59]}  e5 {[%clk 0:01:02]} 8. dxe5 {[%clk 0:02:59]}  Ng4 {[%clk 0:01:02]} 9. c4 {[%clk 0:02:59]}  Ngxe5 {[%clk 0:01:02]} 10. Nc3 {[%clk 0:03:00]}  h6 {[%clk 0:01:02]} 11. Qc2 {[%clk 0:03:00]}  Bf5 {[%clk 0:01:02]} 12. Qd2 {[%clk 0:02:58]}  Bd7 {[%clk 0:01:00]} 13. Rad1 {[%clk 0:02:57]}  Nxf3+ {[%clk 0:00:55]} 14. exf3 {[%clk 0:02:57]}  a6 {[%clk 0:00:48]} 15. Nd5 {[%clk 0:02:58]}  Bxb2 {[%clk 0:00:43]} 16. Qxb2 {[%clk 0:02:58]}  f5 {[%clk 0:00:42]} 17. Rfe1 {[%clk 0:02:58]}  Rf7 {[%clk 0:00:40]} 18. h4 {[%clk 0:02:57]}  h5 {[%clk 0:00:37]} 19. f4 {[%clk 0:02:56]}  a5 {[%clk 0:00:27]} 20. Re3 {[%clk 0:02:56]}  Nb4 {[%clk 0:00:27]} 21. Rde1 {[%clk 0:02:55]}  c6 {[%clk 0:00:23]} 22. Nc3 {[%clk 0:02:44]}  Qf6 {[%clk 0:00:22]} 23. a3 {[%clk 0:02:43]}  Na6 {[%clk 0:00:22]} 24. Qd2 {[%clk 0:02:43]}  Nc5 {[%clk 0:00:21]} 25. b4 {[%clk 0:02:40]}  axb4 {[%clk 0:00:20]} 26. axb4 {[%clk 0:02:41]}  Nb3 {[%clk 0:00:14]} 27. Qd1 {[%clk 0:02:37]}  Na1 {[%clk 0:00:12]} 28. b5 {[%clk 0:02:35]}  Kg7 {[%clk 0:00:10]} 29. Rd3 {[%clk 0:02:29]}  Ra3 {[%clk 0:00:09]} 30. Ne2 {[%clk 0:02:23]}  Rxd3 {[%clk 0:00:09]} 31. Qxd3 {[%clk 0:02:24]}  Re7 {[%clk 0:00:08]} 32. Rd1 {[%clk 0:02:19]}  cxb5 {[%clk 0:00:04]} 33. cxb5 {[%clk 0:02:19]}  Be6 {[%clk 0:00:00]} 34. Nd4 {[%clk 0:02:17]} 1-0

[Event "January 9 Late 2024"]
[Site "https://www.chess.com"]
[Date "2024.01.10"]
[Round "7"]
[White "Coca Cubillos, Jesus Alberto"]
[Black "Kargosha, Bahman"]
[Result "1-0"]
[Board "138"]
[TimeControl "180+1"]
[WhiteFideId "4462912"]
[BlackFideId "12503452"]
[WhiteElo "2519"]
[BlackElo "2302"]
[WhiteTeam "COL"]
[BlackTeam "AUS"]
[WhiteClock "0:02:09"]
[BlackClock "0:00:00"]

1. f4 {[%clk 0:03:00]}  d5 {[%clk 0:02:57]} 2. Nf3 {[%clk 0:02:59]}  c5 {[%clk 0:02:57]} 3. e3 {[%clk 0:03:00]}  Nc6 {[%clk 0:02:57]} 4. d4 {[%clk 0:03:00]}  Nf6 {[%clk 0:02:54]} 5. c3 {[%clk 0:02:58]}  Bf5 {[%clk 0:02:49]} 6. Bd3 {[%clk 0:02:58]}  e6 {[%clk 0:02:44]} 7. O-O {[%clk 0:02:55]}  Bd6 {[%clk 0:02:42]} 8. Ne5 {[%clk 0:02:55]}  c4 {[%clk 0:02:37]} 9. Bc2 {[%clk 0:02:40]}  Bxc2 {[%clk 0:02:24]} 10. Qxc2 {[%clk 0:02:40]}  Ne4 {[%clk 0:02:15]} 11. Nd2 {[%clk 0:02:40]}  Nxd2 {[%clk 0:02:15]} 12. Bxd2 {[%clk 0:02:41]}  f5 {[%clk 0:02:04]} 13. b3 {[%clk 0:02:37]}  Bxe5 {[%clk 0:02:01]} 14. fxe5 {[%clk 0:02:37]}  b5 {[%clk 0:02:00]} 15. a4 {[%clk 0:02:35]}  a6 {[%clk 0:01:57]} 16. axb5 {[%clk 0:02:34]}  axb5 {[%clk 0:01:57]} 17. Rxa8 {[%clk 0:02:34]}  Qxa8 {[%clk 0:01:57]} 18. g4 {[%clk 0:02:35]}  fxg4 {[%clk 0:01:43]} 19. bxc4 {[%clk 0:02:34]}  bxc4 {[%clk 0:01:40]} 20. Qd1 {[%clk 0:02:35]}  h5 {[%clk 0:01:26]} 21. Qb1 {[%clk 0:02:34]}  Ne7 {[%clk 0:01:12]} 22. Be1 {[%clk 0:02:23]}  Nf5 {[%clk 0:00:36]} 23. Qb5+ {[%clk 0:02:17]}  Kf7 {[%clk 0:00:26]} 24. e4 {[%clk 0:02:17]}  dxe4 {[%clk 0:00:23]} 25. Qd7+ {[%clk 0:02:10]}  Kf8 {[%clk 0:00:01]} 26. Qxe6 {[%clk 0:02:10]}  g6 {[%clk 0:00:00]} 27. Qxg6 {[%clk 0:02:09]} 1-0